Workbook

Sheet Resultados
B2: Compensación por unidad | N2: Compensación por central | Q2: Compensación por empresa
B4: Nombre empresa | C4: Nombre central TCV | D4: Nombre unidad TCV | E4: Impuesto | F4: CVP | G4: CMgP | H4: VUI | I4: CTU | J4: Compensación A | K4: Compensación B | L4: Compensación | N4: Nombre central TCV | O4: Suma de Compensación | Q4: Nombre Empresa | R4: Suma de Compensación | T4: Empresa | U4: Impuesto CLP | V4: Compensación CLP | W4: Porcentaje
B5: ANGAMOS | C5: Angamos | D5: ANG1 | E5: 5813731907 | F5: 18.61863382 | G5: 32.23609833 | H5: 2.943787572 | I5: 21.56242139 | J5: 0 | K5: 378470061.1 | L5: 378470061.1 | N5: Andina | O5: 722065012.9 | Q5: AES_GENER | R5: 6180225437 | T5: =+Q5 -> AES_GENER | U5: =+SUMIF(TablaResultados[Nombre empresa],T5,TablaResultados[Impuesto]) -> 1.977195668e+10 | V5: =+SUMIF(TablaResultados[Nombre empresa],T5,TablaResultados[Compensación]) -> 6180225437 | W5: =+IFERROR(V5/U5,"-") -> 0.3125753073
B6: ANGAMOS | C6: Angamos | D6: ANG2 | E6: 5820276486 | F6: 18.60739883 | G6: 32.34457571 | H6: 2.943787572 | I6: 21.55118641 | J6: 0 | K6: 346589201.6 | L6: 346589201.6 | N6: Angamos | O6: 725059262.7 | Q6: ANDINA | R6: 722065012.9 | T6: =+Q6 -> ANDINA | U6: =+SUMIF(TablaResultados[Nombre empresa],T6,TablaResultados[Impuesto]) -> 2633200861 | V6: =+SUMIF(TablaResultados[Nombre empresa],T6,TablaResultados[Compensación]) -> 722065012.9 | W6: 0.2742156983
B7: COLBUN | C7: Antilhue TG | D7: Antilhue TG U1 | E7: 30799193.22 | F7: 88.90883475 | G7: 114.7322764 | H7: 3.688241399 | I7: 92.59707615 | J7: 0 | K7: 13110259.41 | L7: 13110259.41 | N7: Antilhue TG | O7: 26007097.42 | Q7: ANGAMOS | R7: 725059262.7 | T7: ANGAMOS | U7: =+SUMIF(TablaResultados[Nombre empresa],T7,TablaResultados[Impuesto]) -> 1.163400839e+10 | V7: =+SUMIF(TablaResultados[Nombre empresa],T7,TablaResultados[Compensación]) -> 725059262.7 | W7: =+IFERROR(V7/U7,"-") -> 0.06232239468
B8: COLBUN | C8: Antilhue TG | D8: Antilhue TG U2 | E8: 30358781.96 | F8: 97.079533 | G8: 118.0324943 | H8: 4.290289849 | I8: 101.3698228 | J8: 0 | K8: 12896838.01 | L8: 12896838.01 | N8: Arauco | O8: 615820.0899 | Q8: ARAUCO BIO | R8: 6629898.119 | T8: ARAUCO BIO | U8: =+SUMIF(TablaResultados[Nombre empresa],T8,TablaResultados[Impuesto]) -> 2380189316 | V8: =+SUMIF(TablaResultados[Nombre empresa],T8,TablaResultados[Compensación]) -> 6629898.119 | W8: 0.002785449911
B9: ARAUCO BIO | C9: Arauco | D9: Arauco | E9: 943675246 | F9: 15.18194277 | G9: 33.46300784 | H9: 1.265414467 | I9: 16.44735724 | J9: 0 | K9: 615820.0899 | L9: 615820.0899 | N9: Atacama | O9: 545290409.9 | Q9: BE FORESTALES | R9: 336671044.1 | T9: BE FORESTALES | U9: =+SUMIF(TablaResultados[Nombre empresa],T9,TablaResultados[Impuesto]) -> 1425027207 | V9: =+SUMIF(TablaResultados[Nombre empresa],T9,TablaResultados[Compensación]) -> 336671044.1 | W9: 0.236255871
B10: ENEL_GENERACION | C10: Termoeléctrica Bocamina | D10: Bocamina | E10: 1286623131 | F10: 29.02880964 | G10: 38.06230646 | H10: 3.918082991 | I10: 32.94689263 | J10: 0 | K10: 597939794.4 | L10: 597939794.4 | N10: Candelaria | O10: 102547708.4 | Q10: CARDONES SA | R10: 2222944.952 | T10: CARDONES SA | U10: =+SUMIF(TablaResultados[Nombre empresa],T10,TablaResultados[Impuesto]) -> 3575210.55 | V10: =+SUMIF(TablaResultados[Nombre empresa],T10,TablaResultados[Compensación]) -> 2222944.952 | W10: 0.6217661647
B11: ENEL_GENERACION | C11: Termoeléctrica Bocamina | D11: Bocamina II | E11: 7067136781 | F11: 22.00655642 | G11: 29.85773304 | H11: 4.786713354 | I11: 26.79326977 | J11: 0 | K11: 2437967125 | L11: 2437967125 | N11: Cardones | O11: 2222944.952 | Q11: COCHRANE | R11: 2402250514 | T11: COCHRANE | U11: =+SUMIF(TablaResultados[Nombre empresa],T11,TablaResultados[Impuesto]) -> 1.091235437e+10 | V11: =+SUMIF(TablaResultados[Nombre empresa],T11,TablaResultados[Compensación]) -> 2402250514 | W11: 0.2201404419
B12: AES_GENER | C12: Termoeléctrica Ventanas | D12: Campiche | E12: 4966435722 | F12: 23.09586334 | G12: 36.05637278 | H12: 3.758545474 | I12: 26.85440881 | J12: 0 | K12: 1302901371 | L12: 1302901371 | N12: Celco | O12: 4130620.271 | Q12: COLBUN | R12: 3916883333 | T12: COLBUN | U12: =+SUMIF(TablaResultados[Nombre empresa],T12,TablaResultados[Impuesto]) -> 1.609099915e+10 | V12: =+SUMIF(TablaResultados[Nombre empresa],T12,TablaResultados[Compensación]) -> 3916883333 | W12: 0.2434207656
B13: COLBUN | C13: Candelaria | D13: Candelaria 1 | E13: 170071669.8 | F13: 38.38733459 | G13: 65.35024522 | H13: 3.051709925 | I13: 41.43904452 | J13: 0 | K13: 62753806.15 | L13: 62753806.15 | N13: Cholguan | O13: 186721.3036 | Q13: COLMITO | R13: 8571710.578 | T13: COLMITO | U13: =+SUMIF(TablaResultados[Nombre empresa],T13,TablaResultados[Impuesto]) -> 14091016.35 | V13: =+SUMIF(TablaResultados[Nombre empresa],T13,TablaResultados[Compensación]) -> 8571710.578 | W13: 0.6083103138
B14: COLBUN | C14: Candelaria | D14: Candelaria 2 | E14: 220124956.8 | F14: 18.85607793 | G14: 59.04467343 | H14: 2.618837742 | I14: 21.47491567 | J14: 0 | K14: 39793902.3 | L14: 39793902.3 | N14: CMPC Cordillera | O14: 331553406.3 | Q14: COMASA | R14: 5695089.406 | T14: COMASA | U14: =+SUMIF(TablaResultados[Nombre empresa],T14,TablaResultados[Impuesto]) -> 98213709.27 | V14: =+SUMIF(TablaResultados[Nombre empresa],T14,TablaResultados[Compensación]) -> 5695089.406 | W14: 0.0579867052
B15: CARDONES SA | C15: Cardones | D15: Cardones | E15: 3575210.55 | F15: 122.5609707 | G15: 142.4106216 | H15: 4.87679187 | I15: 127.4377626 | J15: 0 | K15: 2222944.952 | L15: 2222944.952 | N15: CMPC Laja | O15: 496351.3073 | Q15: EMELDA | R15: 176840.1418 | T15: EMELDA | U15: =+SUMIF(TablaResultados[Nombre empresa],T15,TablaResultados[Impuesto]) -> 636255.46 | V15: =+SUMIF(TablaResultados[Nombre empresa],T15,TablaResultados[Compensación]) -> 176840.1418 | W15: 0.2779388987
B16: TAMAKAYA_ENERGIA | C16: Kelar | D16: CC KELAR | E16: 2765505068 | F16: 22.60074231 | G16: 39.38731023 | H16: 1.629013796 | I16: 24.22975611 | J16: 0 | K16: 1127851002 | L16: 1127851002 | N16: CMPC Pacífico | O16: 2591558.032 | Q16: ENEL_GENERACION | R16: 6218981768 | T16: ENEL_GENERACION | U16: =+SUMIF(TablaResultados[Nombre empresa],T16,TablaResultados[Impuesto]) -> 1.693036075e+10 | V16: =+SUMIF(TablaResultados[Nombre empresa],T16,TablaResultados[Compensación]) -> 6218981768 | W16: 0.3673271857
B17: ENEL_GENERACION | C17: Atacama | D17: CC1 | E17: 436494110.9 | F17: 33.83403737 | G17: 48.06777831 | H17: 2.605789231 | I17: 36.4398266 | J17: 0 | K17: 217297058.8 | L17: 217297058.8 | N17: Cochrane | O17: 2402250514 | Q17: ENERGIA PACIFICO | R17: 2888915.046 | T17: ENERGIA PACIFICO | U17: =+SUMIF(TablaResultados[Nombre empresa],T17,TablaResultados[Impuesto]) -> 36910164.65 | V17: =+SUMIF(TablaResultados[Nombre empresa],T17,TablaResultados[Compensación]) -> 2888915.046 | W17: 0.07826882036
B18: ENEL_GENERACION | C18: Atacama | D18: CC2 | E18: 519591263.6 | F18: 42.13584128 | G18: 52.92370735 | H18: 2.565118119 | I18: 44.7009594 | J18: 0 | K18: 327993351.1 | L18: 327993351.1 | N18: Colmito | O18: 8571710.578 | Q18: ENGIE | R18: 2729356995 | T18: ENGIE | U18: =+SUMIF(TablaResultados[Nombre empresa],T18,TablaResultados[Impuesto]) -> 8942711964 | V18: =+SUMIF(TablaResultados[Nombre empresa],T18,TablaResultados[Compensación]) -> 2729356995 | W18: 0.3052046187
B19: COCHRANE | C19: Cochrane | D19: CCH1 | E19: 5437638406 | F19: 21.00865375 | G19: 32.9356673 | H19: 3.516497374 | I19: 24.52515113 | J19: 0 | K19: 1187229607 | L19: 1187229607 | N19: Coronel | O19: 16663280.51 | Q19: ENLASA | R19: 0 | T19: ENLASA | U19: =+SUMIF(TablaResultados[Nombre empresa],T19,TablaResultados[Impuesto]) -> 0 | V19: =+SUMIF(TablaResultados[Nombre empresa],T19,TablaResultados[Compensación]) -> 0 | W19: -
B20: COCHRANE | C20: Cochrane | D20: CCH2 | E20: 5474715969 | F20: 21.01733424 | G20: 33.10857719 | H20: 3.516497374 | I20: 24.53383161 | J20: 0 | K20: 1215020907 | L20: 1215020907 | N20: Diego de Almagro | O20: 556010.9936 | Q20: ENORCHILE | R20: 0 | T20: ENORCHILE | U20: =+SUMIF(TablaResultados[Nombre empresa],T20,TablaResultados[Impuesto]) -> 0 | V20: =+SUMIF(TablaResultados[Nombre empresa],T20,TablaResultados[Compensación]) -> 0 | W20: -
B21: ENGIE | C21: (en blanco) | D21: CD Iquique | E21: 0 | F21: 0 | G21: 0 | H21: 0 | I21: 0 | J21: 0 | K21: 0 | L21: 0 | N21: El Salvador | O21: 108382643.7 | Q21: ERSA | R21: 435046.8768 | T21: ERSA | U21: =+SUMIF(TablaResultados[Nombre empresa],T21,TablaResultados[Impuesto]) -> 3135295345 | V21: =+SUMIF(TablaResultados[Nombre empresa],T21,TablaResultados[Compensación]) -> 435046.8768 | W21: 0.0001387578613
B22: ARAUCO BIO | C22: Celco | D22: Celco | E22: 493883326.7 | F22: 17.18291796 | G22: 30.82897303 | H22: 1.50942337 | I22: 18.69234133 | J22: 0 | K22: 4130620.271 | L22: 4130620.271 | N22: Emelda | O22: 176840.1418 | Q22: GMETROPOLITANA | R22: 1058476709 | T22: GMETROPOLITANA | U22: =+SUMIF(TablaResultados[Nombre empresa],T22,TablaResultados[Impuesto]) -> 2323758013 | V22: =+SUMIF(TablaResultados[Nombre empresa],T22,TablaResultados[Compensación]) -> 1058476709 | W22: 0.4555021234
B23: ARAUCO BIO | C23: Cholguan | D23: Cholguán | E23: 81787670.17 | F23: 6.794034347 | G23: 28.784267 | H23: 0.3328531203 | I23: 7.126887467 | J23: 0 | K23: 186721.3036 | L23: 186721.3036 | N23: Energía Pacífico | O23: 2888915.046 | Q23: GUACOLDA | R23: 3291226696 | T23: GUACOLDA | U23: =+SUMIF(TablaResultados[Nombre empresa],T23,TablaResultados[Impuesto]) -> 1.753386884e+10 | V23: =+SUMIF(TablaResultados[Nombre empresa],T23,TablaResultados[Compensación]) -> 3291226696 | W23: 0.1877068163
B24: BE FORESTALES | C24: CMPC Cordillera | D24: CMPC Cordillera | E24: 550405131.4 | F24: 20.00444752 | G24: 34.8503715 | H24: 108.1771092 | I24: 128.1815567 | J24: 229957823.7 | K24: 331553406.3 | L24: 331553406.3 | N24: Escuadron | O24: 958618.5612 | Q24: HORNITOS | R24: 1077576050 | T24: HORNITOS | U24: =+SUMIF(TablaResultados[Nombre empresa],T24,TablaResultados[Impuesto]) -> 3833524117 | V24: =+SUMIF(TablaResultados[Nombre empresa],T24,TablaResultados[Compensación]) -> 1077576050 | W24: 0.2810928058
B25: BE FORESTALES | C25: CMPC Laja | D25: CMPC Laja | E25: 80831547.41 | F25: 16.39121726 | G25: 34.25140622 | H25: 0.1066998619 | I25: 16.49791712 | J25: 0 | K25: 496351.3073 | L25: 496351.3073 | N25: Esperanza | O25: 0 | Q25: LOS_GUINDOS | R25: 31074173.45 | T25: LOS_GUINDOS | U25: =+SUMIF(TablaResultados[Nombre empresa],T25,TablaResultados[Impuesto]) -> 34830868.29 | V25: =+SUMIF(TablaResultados[Nombre empresa],T25,TablaResultados[Compensación]) -> 31074173.45 | W25: 0.8921446688
B26: BE FORESTALES | C26: CMPC Pacífico | D26: CMPC Pacífico | E26: 408732668.3 | F26: 12.93868413 | G26: 33.54522492 | H26: 0.5538563155 | I26: 13.49254044 | J26: 0 | K26: 2591558.032 | L26: 2591558.032 | N26: Guacolda | O26: 3291226696 | Q26: NEOMAS | R26: 765822.2059 | T26: NEOMAS | U26: =+SUMIF(TablaResultados[Nombre empresa],T26,TablaResultados[Impuesto]) -> 24293660.54 | V26: =+SUMIF(TablaResultados[Nombre empresa],T26,TablaResultados[Compensación]) -> 765822.2059 | W26: 0.03152354108
B27: BE FORESTALES | C27: Santa Fe | D27: CMPC Santa Fe | E27: 122403976.3 | F27: 24.04648711 | G27: 38.9137461 | H27: 0.1858017698 | I27: 24.23228888 | J27: 0 | K27: 2029728.449 | L27: 2029728.449 | N27: Horcones TG | O27: 815287.1483 | Q27: NUEVA ENERGIA | R27: 958618.5612 | T27: NUEVA ENERGIA | U27: =+SUMIF(TablaResultados[Nombre empresa],T27,TablaResultados[Impuesto]) -> 26320343.43 | V27: =+SUMIF(TablaResultados[Nombre empresa],T27,TablaResultados[Compensación]) -> 958618.5612 | W27: 0.03642120262
B28: BE FORESTALES | C28: (en blanco) | D28: CMPC TISSUE | E28: 262653883.8 | F28: 0 | G28: 0 | H28: 0 | I28: 0 | J28: 0 | K28: 0 | L28: 0 | N28: Hornitos | O28: 1077576050 | Q28: ORAZUL_CHILE | R28: 4096163.996 | T28: ORAZUL_CHILE | U28: =+SUMIF(TablaResultados[Nombre empresa],T28,TablaResultados[Impuesto]) -> 4535844.69 | V28: =+SUMIF(TablaResultados[Nombre empresa],T28,TablaResultados[Compensación]) -> 4096163.996 | W28: 0.903065311
B29: COLMITO | C29: Colmito | D29: Colmito | E29: 14091016.35 | F29: 51.15460235 | G29: 82.83985971 | H29: 3.019310038 | I29: 54.17391239 | J29: 0 | K29: 8571710.578 | L29: 8571710.578 | N29: Huasco TG | O29: 2572393.24 | Q29: SGA | R29: 16663280.51 | T29: SGA | U29: =+SUMIF(TablaResultados[Nombre empresa],T29,TablaResultados[Impuesto]) -> 29548524.57 | V29: =+SUMIF(TablaResultados[Nombre empresa],T29,TablaResultados[Compensación]) -> 16663280.51 | W29: 0.5639293586
B30: ANDINA | C30: Andina | D30: CTA | E30: 2633200861 | F30: 21.51483719 | G30: 33.70552207 | H30: 4.036471382 | I30: 25.55130857 | J30: 0 | K30: 722065012.9 | L30: 722065012.9 | N30: Kelar | O30: 1127851002 | Q30: SWO | R30: 108382643.7 | T30: SWO | U30: =+SUMIF(TablaResultados[Nombre empresa],T30,TablaResultados[Impuesto]) -> 110440076.9 | V30: =+SUMIF(TablaResultados[Nombre empresa],T30,TablaResultados[Compensación]) -> 108382643.7 | W30: 0.9813705923
B31: HORNITOS | C31: Hornitos | D31: CTH | E31: 3833524117 | F31: 22.07876645 | G31: 31.8408882 | H31: 5.12920645 | I31: 27.2079729 | J31: 0 | K31: 1077576050 | L31: 1077576050 | N31: Laguna Verde | O31: 0 | Q31: TAMAKAYA_ENERGIA | R31: 1127851002 | T31: TAMAKAYA_ENERGIA | U31: =+SUMIF(TablaResultados[Nombre empresa],T31,TablaResultados[Impuesto]) -> 2765505068 | V31: =+SUMIF(TablaResultados[Nombre empresa],T31,TablaResultados[Compensación]) -> 1127851002 | W31: 0.4078282174
B32: ENGIE | C32: Mejillones | D32: CTM1 | E32: 334172463.7 | F32: 30.83556864 | G32: 47.72747889 | H32: 3.389596179 | I32: 34.22516482 | J32: 0 | K32: 201580041.9 | L32: 201580041.9 | N32: Laja | O32: 0 | Q32: Total general | R32: 2.997518497e+10 | T32: Total general | U32: =SUM(U5:U31) -> 1.206961558e+11 | V32: =SUM(V5:V31) -> 2.997518497e+10 | W32: =+V32/U32 -> 0.2483524416
B33: ENGIE | C33: Mejillones | D33: CTM2 | E33: 523160637.2 | F33: 30.75542206 | G33: 45.83956404 | H33: 3.389596179 | I33: 34.14501824 | J33: 0 | K33: 320735349.8 | L33: 320735349.8 | N33: Lautaro | O33: 5695089.406
B34: ENGIE | C34: Mejillones | D34: CTM3 | E34: 1577893222 | F34: 20.12548804 | G34: 34.75757691 | H34: 1.508191462 | I34: 21.6336795 | J34: 0 | K34: 637237438.4 | L34: 637237438.4 | N34: Licanten | O34: 68726.53027
B35: ENEL_GENERACION | C35: Tarapacá | D35: CTTAR | E35: 0 | F35: 0 | G35: 0 | H35: 0 | I35: 0 | J35: 0 | K35: 0 | L35: 0 | N35: Los Guindos | O35: 31074173.45
B36: ENEL_GENERACION | C36: Diego de Almagro | D36: Diego de Almagro | E36: 1586921.27 | F36: 148.8681838 | G36: 186.395313 | H36: 8.166903676 | I36: 157.0350875 | J36: 0 | K36: 556010.9936 | L36: 556010.9936 | N36: Los Pinos | O36: 32869614.8
B37: SWO | C37: El Salvador | D37: El Salvador | E37: 110440076.9 | F37: 188.3405974 | G37: 213.0462373 | H37: 1326.163468 | I37: 1514.504066 | J37: 108382643.7 | K37: 28078230.52 | L37: 108382643.7 | N37: Los Vientos | O37: 100033339.4
B38: EMELDA | C38: Emelda | D38: Emelda U1 | E38: 366699 | F38: 162.0301144 | G38: 200.8866585 | H38: 3.852867752 | I38: 165.8829822 | J38: 0 | K38: 126738.5435 | L38: 126738.5435 | N38: Masisa | O38: 765822.2059
B39: EMELDA | C39: Emelda | D39: Emelda U2 | E39: 269556.46 | F39: 145.6165188 | G39: 177.5288593 | H39: 3.533724002 | I39: 149.1502428 | J39: 0 | K39: 50101.59829 | L39: 50101.59829 | N39: Mejillones | O39: 1774770744
B40: ENERGIA PACIFICO | C40: Energía Pacífico | D40: Energía Pacífico | E40: 36910164.65 | F40: 4.871338944 | G40: 33.97553424 | H40: 0.3256219356 | I40: 5.19696088 | J40: 0 | K40: 2888915.046 | L40: 2888915.046 | N40: Nehuenco | O40: 633692439.3
B41: NUEVA ENERGIA | C41: Escuadron | D41: Escuadrón | E41: 26320343.43 | F41: 19.03237841 | G41: 53.14543417 | H41: 2.334472789 | I41: 21.3668512 | J41: 0 | K41: 958618.5612 | L41: 958618.5612 | N41: Norgener | O41: 1342423269
B42: ENORCHILE | C42: Esperanza | D42: Esperanza TG | E42: 0 | F42: 0 | G42: 0 | H42: 0 | I42: 0 | J42: 0 | K42: 0 | L42: 0 | N42: Nueva Aldea I | O42: 20640.01098
B43: GUACOLDA | C43: Guacolda | D43: Guacolda 1 | E43: 3900541668 | F43: 20.81628621 | G43: 32.93318263 | H43: 4.668166145 | I43: 25.48445236 | J43: 0 | K43: 774485106.8 | L43: 774485106.8 | N43: Nueva Aldea III | O43: 0
B44: GUACOLDA | C44: Guacolda | D44: Guacolda 2 | E44: 3438540228 | F44: 20.31173859 | G44: 33.7568891 | H44: 4.668166145 | I44: 24.97990473 | J44: 0 | K44: 710153918.8 | L44: 710153918.8 | N44: Nueva Renca | O44: 935592107.1
B45: GUACOLDA | C45: Guacolda | D45: Guacolda 3 | E45: 3503151354 | F45: 19.65815614 | G45: 32.22254207 | H45: 3.873415949 | I45: 23.53157209 | J45: 0 | K45: 629751204.7 | L45: 629751204.7 | N45: Petropower | O45: 0
B46: GUACOLDA | C46: Guacolda | D46: Guacolda 4 | E46: 3065194179 | F46: 21.5002022 | G46: 33.03850939 | H46: 4.099698656 | I46: 25.59990086 | J46: 0 | K46: 781021152.6 | L46: 781021152.6 | N46: Quintero | O46: 739537838
B47: GUACOLDA | C47: Guacolda | D47: Guacolda 5 | E47: 3626441408 | F47: 18.43902741 | G47: 32.61992923 | H47: 3.739069408 | I47: 22.17809682 | J47: 0 | K47: 395815313.3 | L47: 395815313.3 | N47: Renca | O47: 0
B48: ARAUCO BIO | C48: Horcones TG | D48: Horcones | E48: 1146697.69 | F48: 120.1612436 | G48: 139.5601868 | H48: 5.198343379 | I48: 125.359587 | J48: 0 | K48: 815287.1483 | L48: 815287.1483 | N48: San Isidro | O48: 735252005.2
B49: ENEL_GENERACION | C49: Huasco TG | D49: Huasco TG | E49: 2572393.24 | F49: 119.8550824 | G49: 119.8550824 | H49: 23.86992988 | I49: 143.7250123 | J49: 2572393.24 | K49: 2572393.24 | L49: 2572393.24 | N49: San Isidro 2 | O49: 1045357907
B50: ENGIE | C50: Mejillones | D50: IEM | E50: 4368653610 | F50: 19.8709002 | G50: 32.17922843 | H50: 1.867150403 | I50: 21.7380506 | J50: 0 | K50: 615217914.3 | L50: 615217914.3 | N50: San Lorenzo de D. de Almagro | O50: 0
B51: AES_GENER | C51: Laguna Verde | D51: Laguna Verde TG | E51: 0 | F51: 0 | G51: 0 | H51: 0 | I51: 0 | J51: 0 | K51: 0 | L51: 0 | N51: Santa Fe | O51: 2029728.449
B52: AES_GENER | C52: Laguna Verde | D52: Laguna Verde TV | E52: 0 | F52: 0 | G52: 0 | H52: 0 | I52: 0 | J52: 0 | K52: 0 | L52: 0 | N52: Santa Lidia | O52: 22851262.87
B53: AES_GENER | C53: Laja | D53: Laja | E53: 846240.11 | F53: 0 | G53: 35.15734522 | H53: 0.0122149719 | I53: 0.0122149719 | J53: 0 | K53: 0 | L53: 0 | N53: Santa María | O53: 3121766473
B54: COMASA | C54: Lautaro | D54: Lautaro-Comasa | E54: 44781286.93 | F54: 22.07226999 | G54: 35.63461616 | H54: 0.2880970647 | I54: 22.36036705 | J54: 0 | K54: 2264109.654 | L54: 2264109.654 | N54: Taltal | O54: 114508283.8
B55: COMASA | C55: Lautaro | D55: Lautaro-Comasa 2 | E55: 53432422.34 | F55: 20.3421564 | G55: 36.72381074 | H55: 0.4817471486 | I55: 20.82390355 | J55: 0 | K55: 3430979.752 | L55: 3430979.752 | N55: Tarapacá | O55: 0
B56: ARAUCO BIO | C56: Licanten | D56: Licantén | E56: 90559811.5 | F56: 1.385934466 | G56: 32.65503498 | H56: 0.5324385543 | I56: 1.91837302 | J56: 0 | K56: 68726.53027 | L56: 68726.53027 | N56: Termoeléctrica Bocamina | O56: 3035906919
B57: LOS_GUINDOS | C57: Los Guindos | D57: Los Guindos | E57: 15100135.14 | F57: 114.7267276 | G57: 131.8519456 | H57: 3.957027058 | I57: 118.6837547 | J57: 0 | K57: 11343440.3 | L57: 11343440.3 | N57: Termoeléctrica Ventanas | O57: 4837802167
B58: COLBUN | C58: Los Pinos | D58: Los Pinos | E58: 143275141.8 | F58: 63.8871475 | G58: 84.56031247 | H58: 2.836330929 | I58: 66.72347843 | J58: 0 | K58: 32869614.8 | L58: 32869614.8 | N58: Tocopilla | O58: 954586250.9
B59: GMETROPOLITANA | C59: Los Vientos | D59: Los Vientos | E59: 127040038.5 | F59: 103.7793056 | G59: 112.3777308 | H59: 4.368375802 | I59: 108.1476814 | J59: 0 | K59: 100033339.4 | L59: 100033339.4 | N59: Valdivia | O59: 21387.31624
B60: NEOMAS | C60: Masisa | D60: Masisa (Cabrero) | E60: 24293660.54 | F60: 7.53227546 | G60: 33.57023543 | H60: 0.2914761244 | I60: 7.823751584 | J60: 0 | K60: 765822.2059 | L60: 765822.2059 | N60: Viñales | O60: 770695.4481
B61: COLBUN | C61: Nehuenco | D61: Nehuenco | E61: 2539215256 | F61: 7.841369594 | G61: 33.18866362 | H61: 1.480768861 | I61: 9.322138455 | J61: 0 | K61: 213928774.3 | L61: 213928774.3 | N61: Yungay | O61: 4096163.996
B62: COLBUN | C62: Nehuenco | D62: Nehuenco II | E62: 3393975971 | F62: 17.83784026 | G62: 32.6601113 | H62: 1.550359625 | I62: 19.38819988 | J62: 0 | K62: 415416060.8 | L62: 415416060.8 | N62: Total general | O62: 2.997474992e+10
B63: COLBUN | C63: Nehuenco | D63: Nehuenco TG 9B | E63: 8275918.94 | F63: 18.65063131 | G63: 45.08829586 | H63: 2.778173089 | I63: 21.4288044 | J63: 0 | K63: 4347604.167 | L63: 4347604.167
B64: AES_GENER | C64: Norgener | D64: NTO1 | E64: 2924206586 | F64: 21.13760243 | G64: 31.48531162 | H64: 3.841353309 | I64: 24.97895574 | J64: 0 | K64: 743871548 | L64: 743871548
B65: AES_GENER | C65: Norgener | D65: NTO2 | E65: 2913021870 | F65: 20.67957451 | G65: 33.88869672 | H65: 3.833917906 | I65: 24.51349242 | J65: 0 | K65: 598551721.5 | L65: 598551721.5
B66: ARAUCO BIO | C66: Nueva Aldea I | D66: Nueva Aldea I | E66: 35740752.02 | F66: 7.977919867 | G66: 32.1716733 | H66: 0.143623677 | I66: 8.121543544 | J66: 0 | K66: 20640.01098 | L66: 20640.01098
B67: ARAUCO BIO | C67: Nueva Aldea III | D67: Nueva Aldea III | E67: 260248858.2 | F67: 0 | G67: 30.27941659 | H67: 0.2343655292 | I67: 0.2343655292 | J67: 0 | K67: 0 | L67: 0
B68: GMETROPOLITANA | C68: Nueva Renca | D68: Nueva Renca | E68: 2169019691 | F68: 32.63328274 | G68: 46.18264011 | H68: 2.05425885 | I68: 34.68754159 | J68: 0 | K68: 935592107.1 | L68: 935592107.1
B69: AES_GENER | C69: Termoeléctrica Ventanas | D69: Nueva Ventanas | E69: 5329378966 | F69: 21.98360379 | G69: 34.13981222 | H69: 3.811068284 | I69: 25.79467208 | J69: 0 | K69: 1267695915 | L69: 1267695915
B70: ERSA | C70: Petropower | D70: Petropower | E70: 0 | F70: 2.703738999 | G70: 30.14884934 | H70: 0 | I70: 2.703738999 | J70: 0 | K70: 0 | L70: 0
B71: ENEL_GENERACION | C71: Quintero | D71: Quintero A | E71: 1069966952 | F71: 24.33842074 | G71: 45.12391512 | H71: 3.225899955 | I71: 27.5643207 | J71: 0 | K71: 463474311.8 | L71: 463474311.8
B72: ENEL_GENERACION | C72: Quintero | D72: Quintero B | E72: 838759900 | F72: 21.54220984 | G72: 43.70607543 | H72: 3.285352865 | I72: 24.8275627 | J72: 0 | K72: 276063526.1 | L72: 276063526.1
B73: GMETROPOLITANA | C73: Renca | D73: Renca U1 | E73: 0 | F73: 0 | G73: 0 | H73: 0 | I73: 0 | J73: 0 | K73: 0 | L73: 0
B74: GMETROPOLITANA | C74: Renca | D74: Renca U2 | E74: 0 | F74: 0 | G74: 0 | H74: 0 | I74: 0 | J74: 0 | K74: 0 | L74: 0
B75: ENEL_GENERACION | C75: San Isidro | D75: San Isidro | E75: 2148655337 | F75: 16.83181773 | G75: 38.14858479 | H75: 1.5409104 | I75: 18.37272813 | J75: 0 | K75: 735252005.2 | L75: 735252005.2
B76: ENEL_GENERACION | C76: San Isidro 2 | D76: San Isidro II | E76: 3256847394 | F76: 19.82128835 | G76: 35.29599902 | H76: 1.471445414 | I76: 21.29273376 | J76: 0 | K76: 1045357907 | L76: 1045357907
B77: ENLASA | C77: San Lorenzo de D. de Almagro | D77: San Lorenzo de D. de Almagro U1 | E77: 0 | F77: 132.14327 | G77: 132.14327 | H77: 0 | I77: 132.14327 | J77: 0 | K77: 0 | L77: 0
B78: ENLASA | C78: San Lorenzo de D. de Almagro | D78: San Lorenzo de D. de Almagro U2 | E78: 0 | F78: 145.025615 | G78: 145.025615 | H78: 0 | I78: 145.025615 | J78: 0 | K78: 0 | L78: 0
B79: GMETROPOLITANA | C79: Santa Lidia | D79: Santa Lidia | E79: 27698283.37 | F79: 94.59746908 | G79: 102.0497748 | H79: 3.706412618 | I79: 98.3038817 | J79: 0 | K79: 22851262.87 | L79: 22851262.87
B80: COLBUN | C80: Santa María | D80: Santa María | E80: 9554902260 | F80: 23.92141735 | G80: 35.32986178 | H80: 4.875299024 | I80: 28.79671638 | J80: 0 | K80: 3121766473 | L80: 3121766473
B81: ENEL_GENERACION | C81: Taltal | D81: Taltal 1 | E81: 215106387.8 | F81: 48.26367418 | G81: 67.05092743 | H81: 6.08558354 | I81: 54.34925772 | J81: 0 | K81: 67607047.78 | L81: 67607047.78
B82: ENEL_GENERACION | C82: Taltal | D82: Taltal 2 | E82: 86882795.45 | F82: 52.01404449 | G82: 60.35838638 | H82: 4.100288512 | I82: 56.114333 | J82: 0 | K82: 46901236.03 | L82: 46901236.03
B83: SGA | C83: Coronel | D83: TG_Coronel | E83: 29548524.57 | F83: 67.89310095 | G83: 94.2650511 | H83: 11.60748092 | I83: 79.50058187 | J83: 0 | K83: 16663280.51 | L83: 16663280.51
B84: ENGIE | C84: Tocopilla | D84: TG1 | E84: 0 | F84: 225.3008553 | G84: 225.3008553 | H84: 0 | I84: 225.3008553 | J84: 0 | K84: 0 | L84: 0
B85: ENGIE | C85: Tocopilla | D85: TG2 | E85: 0 | F85: 0 | G85: 0 | H85: 0 | I85: 0 | J85: 0 | K85: 0 | L85: 0
B86: ENGIE | C86: Tocopilla | D86: TG3 | E86: 20073099.6 | F86: 8.715082319 | G86: 32.60348567 | H86: 1.078760894 | I86: 9.793843214 | J86: 0 | K86: 2340456.671 | L86: 2340456.671
B87: ENEL_GENERACION | C87: Tarapacá | D87: TGTAR | E87: 137384.0006 | F87: 0 | G87: 0 | H87: 0 | I87: 0 | J87: 0 | K87: 0 | L87: 0
B88: ENGIE | C88: Tocopilla | D88: U12 | E88: 0 | F88: 0 | G88: 0 | H88: 0 | I88: 0 | J88: 0 | K88: 0 | L88: 0
B89: ENGIE | C89: Tocopilla | D89: U13 | E89: 0 | F89: 0 | G89: 0 | H89: 0 | I89: 0 | J89: 0 | K89: 0 | L89: 0
B90: ENGIE | C90: Tocopilla | D90: U14 | E90: 161372391.2 | F90: 45.67698804 | G90: 61.49049078 | H90: 3.867255856 | I90: 49.54424389 | J90: 0 | K90: 109517202.8 | L90: 109517202.8
B91: ENGIE | C91: Tocopilla | D91: U15 | E91: 283319537.8 | F91: 42.95350702 | G91: 53.04846679 | H91: 3.867255856 | I91: 46.82076287 | J91: 0 | K91: 208874430.9 | L91: 208874430.9
B92: ENGIE | C92: Tocopilla | D92: U16 | E92: 1674067003 | F92: 21.63218658 | G92: 32.75693318 | H92: 1.631266086 | I92: 23.26345266 | J92: 0 | K92: 633854160.5 | L92: 633854160.5
B93: ARAUCO BIO | C93: Valdivia | D93: Valdivia | E93: 359061996.4 | F93: 1.00699291 | G93: 33.86668214 | H93: 0.2989542541 | I93: 1.305947165 | J93: 0 | K93: 21387.31624 | L93: 21387.31624
B94: AES_GENER | C94: Termoeléctrica Ventanas | D94: Ventanas 1 | E94: 398116435.7 | F94: 34.0595234 | G94: 50.86745559 | H94: 4.42761594 | I94: 38.48713934 | J94: 0 | K94: 224619427.6 | L94: 224619427.6
B95: AES_GENER | C95: Termoeléctrica Ventanas | D95: Ventanas 2 | E95: 3239950865 | F95: 28.58677176 | G95: 37.1397308 | H95: 3.7016995 | I95: 32.28847126 | J95: 0 | K95: 2042585453 | L95: 2042585453
B96: ARAUCO BIO | C96: Viñales | D96: Viñales | E96: 114084957.5 | F96: 14.36403823 | G96: 31.82175488 | H96: 0.3297262636 | I96: 14.69376449 | J96: 0 | K96: 770695.4481 | L96: 770695.4481
B97: ORAZUL_CHILE | C97: Yungay | D97: Yungay 1 | E97: 2178135.16 | F97: 118.6542402 | G97: 120.0350393 | H97: 3.391446008 | I97: 122.0456862 | J97: 1291325.535 | K97: 2178135.16 | L97: 2178135.16
B98: ORAZUL_CHILE | C98: Yungay | D98: Yungay 2 | E98: 1386428.54 | F98: 108.8618707 | G98: 116.1034802 | H98: 3.60794077 | I98: 112.4698115 | J98: 0 | K98: 1126152.165 | L98: 1126152.165
B99: ORAZUL_CHILE | C99: Yungay | D99: Yungay 3 | E99: 971280.99 | F99: 114.3060766 | G99: 120.6369837 | H99: 2.052605617 | I99: 116.3586822 | J99: 0 | K99: 791876.6706 | L99: 791876.6706
B100: ORAZUL_CHILE | C100: Yungay | D100: Yungay 4 ca | E100: 0 | F100: 0 | G100: 0 | H100: 0 | I100: 0 | J100: 0 | K100: 0 | L100: 0
B101: LOS_GUINDOS | C101: Los Guindos | D101: Los Guindos 2 | E101: 19730733.15 | F101: 108.9380866 | G101: 109.2250499 | H101: 4.764896264 | I101: 113.7029828 | J101: 18542460.02 | K101: 19730733.15 | L101: 19730733.15
B102: ERSA | C102: ACONCAGUA | D102: ACONCAGUA | E102: 1163351101 | F102: 0 | G102: 28.57461238 | H102: 11.04796867 | I102: 11.04796867 | J102: 0 | K102: 0 | L102: 0
B103: ERSA | C103: ERSA_BIOBIO | D103: ERSA_BIOBIO | E103: 1971944245 | F103: 2.685427002 | G103: 32.94590762 | H103: 5.358078223 | I103: 8.043505225 | J103: 0 | K103: 435046.8768 | L103: 435046.8768

Sheet Cuadro de Pago
C2: Cuadro de Pago
C4: Empresa | D4: Paga | E4: Recibe | F4: Neto | J4: Reciben
I5: Pagan | J5: AES_GENER | K5: ANDINA | L5: BE FORESTALES | M5: CARDONES SA | N5: COCHRANE | O5: COLMITO | P5: GMETROPOLITANA | Q5: GUACOLDA | R5: HORNITOS | S5: LOS_GUINDOS | T5: ORAZUL_CHILE | U5: SWO | V5: Total
C6: AES_GENER | D6: 3658413364 | E6: 6180225437 | F6: 2521812072 | I6: ANGAMOS | J6: =+$V6*J$90/$V$90 -> 189876687.9 | K6: 23601224.96 | L6: 24133598.71 | M6: 167373.8616 | N6: 119242911.6 | O6: 645396.2339 | P6: 79696680.81 | Q6: 129844909.3 | R6: 37747212.59 | S6: 2339691.05 | T6: 308415.5481 | U6: 8160535.684 | V6: =-VLOOKUP(I6,C:F,4,0) -> 615764638.3
C7: ANDINA | D7: 408609713.6 | E7: 722065012.9 | F7: 313455299.3 | I7: ARAUCO BIO | J7: 60473394.1 | K7: 7516700.414 | L7: 7686254.916 | M7: 53306.52018 | N7: 37977403.48 | O7: 205550.7774 | P7: 25382414.45 | Q7: 41354009.59 | R7: 12022023.81 | S7: 745162.8765 | T7: 98226.56586 | U7: 2599030.434 | V7: 196113477.9
C8: ANGAMOS | D8: 1340823901 | E8: 725059262.7 | F8: -615764638.3 | I8: COLBUN | J8: 116541533.9 | K8: 14485838.1 | L8: 14812595.71 | M8: 102729.8653 | N8: 73188299.11 | O8: 396127.9708 | P8: 48915817.58 | Q8: 79695538.55 | R8: 23168289.4 | S8: 1436043.502 | T8: 189297.704 | U8: 5008731.491 | V8: 377940842.9
C9: ARAUCO BIO | D9: 202743376.1 | E9: 6629898.119 | F9: -196113477.9 | I9: COMASA | J9: 6293878.048 | K9: 782314.2133 | L9: 799960.9053 | M9: 5547.972661 | N9: 3952567.07 | O9: 21393.06955 | P9: 2641720.769 | Q9: 4303993.468 | R9: 1251213.908 | S9: 77554.17635 | T9: 10223.1078 | U9: 270498.801 | V9: 20410865.51
C10: BE FORESTALES | D10: 16145121.5 | E10: 336671044.1 | F10: 320525922.6 | I10: EMELDA | J10: 17319401.34 | K10: 2152760.783 | L10: 2201320.692 | M10: 15266.82984 | N10: 10876616.12 | O10: 58869.13515 | P10: 7269448.483 | Q10: 11843666.13 | R10: 3443072.089 | S10: 213412.4455 | T10: 28131.79816 | U10: 744354.6349 | V10: 56166320.48
C11: CARDONES SA | D11: 0 | E11: 2222944.952 | F11: 2222944.952 | I11: ENEL_GENERACION | J11: 308093649 | K11: 38295314.71 | L11: 39159143.61 | M11: 271580.5944 | N11: 193483382.1 | O11: 1047219.029 | P11: 129315723.1 | Q11: 210686168.8 | R11: 61248574.51 | S11: 3796379.434 | T11: 500434.6383 | U11: 13241273.82 | V11: 999138843.3
C12: COCHRANE | D12: 818547862.5 | E12: 2402250514 | F12: 1583702651 | I12: ENERGIA PACIFICO | J12: 5415683.649 | K12: 673156.7185 | L12: 688341.1406 | M12: 4773.855578 | N12: 3401059.361 | O12: 18408.06194 | P12: 2273117.442 | Q12: 3703450.698 | R12: 1076630.124 | S12: 66732.92389 | T12: 8796.66198 | U12: 232755.6909 | V12: 17562906.33
C13: COLBUN | D13: 4294824176 | E13: 3916883333 | F13: -377940842.9 | I13: ENGIE | J13: 317663445.7 | K13: 39484817.9 | L13: 40375478.46 | M13: 280016.2473 | N13: 199493232.2 | O13: 1079747.039 | P13: 133332440.7 | Q13: 217230360.2 | R13: 63151036.34 | S13: 3914300.007 | T13: 515978.8008 | U13: 13652565.32 | V13: 1030173419
C14: COLMITO | D14: 0 | E14: 8571710.578 | F14: 8571710.578 | I14: ENORCHILE | J14: 15560841.93 | K14: 1934175.991 | L14: 1977805.274 | M14: 13716.6823 | N14: 9772237.547 | O14: 52891.74195 | P14: 6531330.76 | Q14: 10641096.24 | R14: 3093473.006 | S14: 191743.1939 | T14: 25275.38081 | U14: 668775.1258 | V14: 50463362.87
C15: COMASA | D15: 26105954.91 | E15: 5695089.406 | F15: -20410865.51 | I15: ERSA | J15: 15743352.43 | K15: 1956861.616 | L15: 2001002.619 | M15: 13877.56296 | N15: 9886854.478 | O15: 53512.10029 | P15: 6607935.64 | Q15: 10765903.86 | R15: 3129755.83 | S15: 193992.1176 | T15: 25571.8315 | U15: 676619.0768 | V15: 51055239.16
C16: EMELDA | D16: 56343160.62 | E16: 176840.1418 | F16: -56166320.48 | I16: NEOMAS | J16: =+$V16*J$90/$V$90 -> 8458743.381 | K16: 1051401.874 | L16: 1075118.386 | M16: 7456.273646 | N16: 5312106.507 | O16: 28751.50806 | P16: 3550376.714 | Q16: 5784410.816 | R16: 1681586.024 | S16: 104229.9947 | T16: 13739.48537 | U16: 363540.5587 | V16: 27431461.52
C17: ENEL_GENERACION | D17: 7218120611 | E17: 6218981768 | F17: -999138843.3 | I17: NUEVA ENERGIA | J17: 11154029.88 | K17: 1386419.635 | L17: 1417693.156 | M17: 9832.134073 | N17: 7004751.417 | O17: 37912.8631 | P17: 4681665.604 | Q17: 7627550.352 | R17: 2217405.105 | S17: 137441.7479 | T17: 18117.42282 | U17: 479378.8002 | V17: 36172198.11
C18: ENERGIA PACIFICO | D18: 20451821.37 | E18: 2888915.046 | F18: -17562906.33 | I18: SGA | J18: 8485216.392 | K18: 1054692.407 | L18: 1078483.144 | M18: 7479.609266 | N18: 5328731.608 | O18: 28841.49057 | P18: 3561488.195 | Q18: 5802514.069 | R18: 1686848.821 | S18: 104556.1994 | T18: 13782.48533 | U18: 364678.3179 | V18: 27517312.74
C19: ENGIE | D19: 3759530414 | E19: 2729356995 | F19: -1030173419 | I19: TAMAKAYA_ENERGIA | J19: 78065252.44 | K19: 9703326.959 | L19: 9922205.281 | M19: 68813.51736 | N19: 49025123.1 | O19: 265346.0016 | P19: 32766220.94 | Q19: 53383992.19 | R19: 15519259.96 | S19: 961932.5808 | T19: 126800.9143 | U19: 3355094.747 | V19: 253163368.6
C20: ENLASA | D20: 0 | E20: 0 | F20: 0 | I20: AASA_ENERGIA | J20: 222501.6562 | K20: 27656.43166 | L20: 28280.27885 | M20: 196.1323521 | N20: 139731.4521 | O20: 756.2894241 | P20: 93390.31383 | Q20: 152155.1049 | R20: 44233.00938 | S20: 2741.70115 | T20: 361.4080855 | U20: 9562.694215 | V20: 721566.4721
C21: ENORCHILE | D21: 50463362.87 | E21: 0 | F21: -50463362.87 | I21: ABASTIBLE | J21: 307553.9474 | K21: 38228.23108 | L21: 39090.54677 | M21: 271.1048545 | N21: 193144.4485 | O21: 1045.384568 | P21: 129089.195 | Q21: 210317.1003 | R21: 61141.28262 | S21: 3789.729145 | T21: 499.5580044 | U21: 13218.07848 | V21: 997388.6068
C22: ERSA | D22: 51490286.04 | E22: 435046.8768 | F22: -51055239.16 | I22: ACCIONA_ENERGIA | J22: 112858874.2 | K22: 14028092.17 | L22: 14344524.38 | M22: 99483.648 | N22: 70875581.96 | O22: 383610.5061 | P22: 47370099.88 | Q22: 77177195.58 | R22: 22436181.94 | S22: 1390665.177 | T22: 183315.9822 | U22: 4850457.842 | V22: 365998083.2
C23: GMETROPOLITANA | D23: 0 | E23: 1058476709 | F23: 1058476709 | I23: AELA_GENERACION | J23: 65596244.97 | K23: 8153458.708 | L23: 8337376.592 | M23: 57822.24743 | N23: 41194563.32 | O23: 222963.4924 | P23: 27532621.6 | Q23: 44857210.09 | R23: 13040439.2 | S23: 808287.4678 | T23: 106547.5813 | U23: 2819200.734 | V23: 212726736
C24: GUACOLDA | D24: 1566715575 | E24: 3291226696 | F24: 1724511121 | I24: ALBA | J24: 857265.9304 | K24: 106556.1355 | L24: 108959.7263 | M24: 755.6689069 | N24: 538364.5918 | O24: 2913.87115 | P24: 359819.0488 | Q24: 586231.0862 | R24: 170423.2346 | S24: 10563.3685 | T24: 1392.451832 | U24: 36843.64465 | V24: 2780088.759
C25: HORNITOS | D25: 576243435.2 | E25: 1077576050 | F25: 501332614.7 | I25: ALMEYDA | J25: 31646205.66 | K25: 3933548.806 | L25: 4022278.019 | M25: 27895.72383 | N25: 19873875.76 | O25: 107566.3483 | P25: 13282818.34 | Q25: 21640880.45 | R25: 6291220.192 | S25: 389949.6297 | T25: 51402.73918 | U25: 1360093.192 | V25: 102627734.9
C26: LOS_GUINDOS | D26: 0 | E26: 31074173.45 | F26: 31074173.45 | I26: ALLIPEN | J26: =+$V26*J$90/$V$90 -> 3725553.562 | K26: 463077.5305 | L26: 473523.1882 | M26: 3284.027614 | N26: 2339654.536 | O26: 12663.26196 | P26: 1563721.468 | Q26: 2547675.387 | R26: 740634.6923 | S26: 45906.86946 | T26: 6051.393968 | U26: 160117.143 | V26: 12081863.06
C27: NEOMAS | D27: 28197283.73 | E27: 765822.2059 | F27: -27431461.52 | I27: ARRAYAN_EOLICO | J27: 463880.6963 | K27: 57659.27767 | L27: 58959.90023 | M27: 408.9048757 | N27: 291317.9363 | O27: 1576.74361 | P27: 194704.0061 | Q27: 317219.2838 | R27: 92218.81557 | S27: 5716.012457 | T27: 753.4785908 | U27: 19936.70217 | V27: 1504351.758
C28: NUEVA ENERGIA | D28: 37130816.67 | E28: 958618.5612 | F28: -36172198.11 | I28: CERRO_DOMINADOR_CSP | J28: 79838593.82 | K28: 9923749.115 | L28: 10147599.51 | M28: 70376.69501 | N28: 50138784.77 | O28: 271373.6391 | P28: 33510543.07 | Q28: 54596670.55 | R28: 15871797.68 | S28: 983783.9782 | T28: 129681.3419 | U28: 3431309.557 | V28: 258914263.7
C29: ORAZUL_CHILE | D29: 0 | E29: 4096163.996 | F29: 4096163.996 | I29: ATRIA_ENERGIA | J29: 11344730.46 | K29: 1410123.269 | L29: 1441931.474 | M29: 10000.23419 | N29: 7124511.739 | O29: 38561.05979 | P29: 4761708.099 | Q29: 7757958.674 | R29: 2255316.107 | S29: 139791.5911 | T29: 18427.17662 | U29: 487574.7454 | V29: 36790634.63
C30: SGA | D30: 44180593.25 | E30: 16663280.51 | F30: -27517312.74 | I30: BESALCO | J30: 13319784.85 | K30: 1655617.876 | L30: 1692963.713 | M30: 11741.21927 | N30: 8364849.553 | O30: 45274.32554 | P30: 5590694.959 | Q30: 9108576.072 | R30: 2647954.08 | S30: 164128.5286 | T30: 21635.24544 | U30: 572458.7931 | V30: 43195679.22
C31: SWO | D31: 0 | E31: 108382643.7 | F31: 108382643.7 | I31: CABO_LEONES | J31: 17350692.45 | K31: 2156650.194 | L31: 2205297.836 | M31: 15294.41255 | N31: 10896266.99 | O31: 58975.49452 | P31: 7282582.258 | Q31: 11865064.18 | R31: 3449292.717 | S31: 213798.0196 | T31: 28182.62412 | U31: 745699.4668 | V31: 56267796.65
C32: TAMAKAYA_ENERGIA | D32: 1381014371 | E32: 1127851002 | F32: -253163368.6 | I32: CAREN | J32: 9294110.617 | K32: 1155236.053 | L32: 1181294.757 | M32: 8192.639135 | N32: 5836718.678 | O32: 31590.94492 | P32: 3901004.254 | Q32: 6355666.741 | R32: 1847655.83 | S32: 114523.524 | T32: 15096.36729 | U32: 399443.0395 | V32: 30140533.44
C33: AASA_ENERGIA | D33: 721566.4721 | E33: 0 | F33: -721566.4721 | I33: CONEJO_SOLAR | J33: 24750289.84 | K33: 3076402.716 | L33: 3145797.251 | M33: 21817.0626 | N33: 15543227.85 | O33: 84126.93536 | P33: 10388405.08 | Q33: 16925190.63 | R33: 4920322.039 | S33: 304977.0472 | T33: 40201.74509 | U33: 1063719.963 | V33: 80264478.16
C34: ABASTIBLE | D34: 997388.6068 | E34: 0 | F34: -997388.6068 | I34: COYANCO | J34: 5376373.956 | K34: 668270.6162 | L34: 683344.8224 | M34: 4739.204588 | N34: 3376372.801 | O34: 18274.44718 | P34: 2256618.039 | Q34: 3676569.233 | R34: 1068815.414 | S34: 66248.54354 | T34: 8732.811484 | U34: 231066.2357 | V34: 17435426.12
C35: ACCIONA_ENERGIA | D35: 365998083.2 | E35: 0 | F35: -365998083.2 | I35: CHACAYES | J35: 61076369.55 | K35: 7591648.841 | L35: 7762893.958 | M35: 53838.03529 | N35: 38356073.18 | O35: 207600.308 | P35: 25635500.51 | Q35: 41766347.16 | R35: 12141894.46 | S35: 752592.8368 | T35: 99205.97521 | U35: 2624945.161 | V35: 198068910
C36: AELA_GENERACION | D36: 212726736 | E36: 0 | F36: -212726736 | I36: CHUNGUNGO | J36: =+$V36*J$90/$V$90 -> 14243948.62 | K36: 1770489.256 | L36: 1810426.25 | M36: 12555.85776 | N36: 8945226.113 | O36: 48415.58435 | P36: 5978592.946 | Q36: 9740554.45 | R36: 2831676.51 | S36: 175516.2231 | T36: 23136.35903 | U36: 612177.5786 | V36: 46192715.75
C37: ALBA | D37: 2780088.759 | E37: 0 | F37: -2780088.759 | I37: DUQUECO | J37: 38604479.15 | K37: 4798445.807 | L37: 4906684.535 | M37: 34029.35253 | N37: 24243684.39 | O37: 131217.7168 | P37: 16203404.89 | Q37: 26399212.82 | R37: 7674514.957 | S37: 475690.5934 | T37: 62705.02044 | U37: 1659146.434 | V37: 125193215.7
C38: ALMEYDA | D38: 102627734.9 | E38: 0 | F38: -102627734.9 | I38: EGP_SUR | J38: 79072.66165 | K38: 9828.54555 | L38: 10050.24843 | M38: 69.70153563 | N38: 49657.77794 | O38: 268.770214 | P38: 33189.05942 | Q38: 54072.89696 | R38: 15719.53146 | S38: 974.3460389 | T38: 128.4372429 | U38: 3398.391262 | V38: =-VLOOKUP(I38,C:F,4,0) -> 256430.3677
C39: ALLIPEN | D39: 12081863.06 | E39: 0 | F39: -12081863.06 | I39: EL_MORADO | J39: 2999243.829 | K39: 372798.9418 | L39: 381208.182 | M39: 2643.794913 | N39: 1883530.679 | O39: 10194.51463 | P39: 1258868.483 | Q39: 2050997.135 | R39: 596245.3615 | S39: 36957.16425 | T39: 4871.653491 | U39: 128901.7444 | V39: 9726461.483
C40: ARRAYAN_EOLICO | D40: 1504351.758 | E40: 0 | F40: -1504351.758 | I40: EL_PELICANO | J40: 22893560.54 | K40: 2845615.639 | L40: 2909804.301 | M40: 20180.37957 | N40: 14377198.42 | O40: 77815.85997 | P40: 9609082.649 | Q40: 15655488.44 | R40: 4551206.925 | S40: 282098.1306 | T40: 37185.87101 | U40: 983921.3008 | V40: 74243158.46
C41: CERRO_DOMINADOR_CSP | D41: 258914263.7 | E41: 0 | F41: -258914263.7 | I41: EMBALSE_ANCOA | J41: 1562313.185 | K41: 194191.8481 | L41: 198572.2412 | M41: 1377.159006 | N41: 981135.5734 | O41: 5310.346715 | P41: 655747.5624 | Q41: 1068369.246 | R41: 310585.6152 | S41: 19251.07403 | T41: 2537.655795 | U41: 67145.22271 | V41: 5066536.729
C42: ATRIA_ENERGIA | D42: 36790634.63 | E42: 0 | F42: -36790634.63 | I42: ENERGIA_LEON | J42: 1579974.133 | K42: 196387.0624 | L42: 200816.973 | M42: 1392.726905 | N42: 992226.6816 | O42: 5370.376778 | P42: 663160.3679 | Q42: 1080446.475 | R42: 314096.5864 | S42: 19468.69508 | T42: 2566.342366 | U42: 67904.25638 | V42: 5123810.677
C43: BESALCO | D43: 43195679.22 | E43: 0 | F43: -43195679.22 | I43: EOLICA_ESPERANZA | J43: 1145910.845 | K43: 142434.0182 | L43: 145646.9079 | M43: 1010.105691 | N43: 719634.1324 | O43: 3894.983379 | P43: 480971.5812 | Q43: 783617.4695 | R43: 227805.4286 | S43: 14120.0975 | T43: 1861.296008 | U43: 49249.04916 | V43: 3716155.914
C44: CABO_LEONES | D44: 56267796.65 | E44: 0 | F44: -56267796.65 | I44: ERNC1 | J44: 3175977.801 | K44: 394766.5582 | L44: 403671.3227 | M44: 2799.58364 | N44: 1994519.941 | O44: 10795.2384 | P44: 1333048.79 | Q44: 2171854.555 | R44: 631379.8212 | S44: 39134.90865 | T44: 5158.721406 | U44: 136497.4314 | V44: 10299604.67
C45: CAREN | D45: 30140533.44 | E45: 0 | F45: -30140533.44 | I45: GAS SUR | J45: 198721.0699 | K45: 24700.56081 | L45: 25257.73232 | M45: 175.1700708 | N45: 124797.1999 | O45: 675.4585387 | P45: 83408.92111 | Q45: 135893.0345 | R45: 39505.46303 | S45: 2448.672946 | T45: 322.781424 | U45: 8540.650252 | V45: 644446.7149
C46: CONEJO_SOLAR | D46: 80264478.16 | E46: 0 | F46: -80264478.16 | I46: GM_HOLDINGS | J46: =+$V46*J$90/$V$90 -> 327555551.2 | K46: 40714383.3 | L46: 41632779.22 | M46: 288736.0112 | N46: 205705492.7 | O46: 1113370.585 | P46: 137484440.6 | Q46: 223994958.5 | R46: 65117572.69 | S46: 4036192.119 | T46: 532046.4875 | U46: 14077709.03 | V46: 1062253232
C47: COYANCO | D47: 17435426.12 | E47: 0 | F47: -17435426.12 | I47: HELIO_ATACAMA_TRES | J47: 1679887.738 | K47: 208806.0881 | L47: 213516.1351 | M47: 1480.799465 | N47: 1054972.61 | O47: 5709.985947 | P47: 705096.9676 | Q47: 1148771.202 | R47: 333959.2673 | S47: 20699.84656 | T47: 2728.631425 | U47: 72198.35138 | V47: 5447827.623
C48: CHACAYES | D48: 198068910 | E48: 0 | F48: -198068910 | I48: HIDROLIRCAY | J48: 15402841.7 | K48: 1914536.934 | L48: 1957723.218 | M48: 13577.40712 | N48: 9673013.11 | O48: 52354.69469 | P48: 6465013.541 | Q48: 10533049.66 | R48: 3062062.787 | S48: 189796.2897 | T48: 25018.74199 | U48: 661984.5791 | V48: 49950972.66
C49: CHUNGUNGO | D49: 46192715.75 | E49: 0 | F49: -46192715.75 | I49: HUAJACHE | J49: 2642643.731 | K49: 328474.3898 | L49: 335883.7993 | M49: 2329.456507 | N49: 1659585.157 | O49: 8982.420805 | P49: 1109193.215 | Q49: 1807140.41 | R49: 525353.7747 | S49: 32563.08056 | T49: 4292.430123 | U49: 113575.7565 | V49: 8570017.621
C50: DUQUECO | D50: 125193215.7 | E50: 0 | F50: -125193215.7 | I50: IMELSA_ENERGIA | J50: 47322762.59 | K50: 5882107.899 | L50: 6014790.835 | M50: 41714.40741 | N50: 29718782.54 | O50: 160851.4089 | P50: 19862717.99 | Q50: 32361107.02 | R50: 9407697.173 | S50: 583118.6825 | T50: 76866.07516 | U50: 2033841.527 | V50: 153466358.2
C51: EGP_SUR | D51: 256430.3677 | E51: 0 | F51: -256430.3677 | I51: JAVIERA | J51: 19406154.34 | K51: 2412139.264 | L51: 2466549.983 | M51: 17106.2758 | N51: 12187100.86 | O51: 65962.06762 | P51: 8145318.444 | Q51: 13270667.28 | R51: 3857915.585 | S51: 239125.7511 | T51: 31521.29834 | U51: 834039.2743 | V51: 62933600.43
C52: EL_MORADO | D52: 9726461.483 | E52: 0 | F52: -9726461.483 | I52: KALTEMP | J52: 115209.8769 | K52: 14320.31626 | L52: 14643.34019 | M52: 101.5560267 | N52: 72352.01602 | O52: 391.6016308 | P52: 48356.88301 | Q52: 78784.90076 | R52: 22903.5579 | S52: 1419.63461 | T52: 187.1347016 | U52: 4951.499427 | V52: 373622.3174
C53: EL_PELICANO | D53: 74243158.46 | E53: 0 | F53: -74243158.46 | I53: KDM_ENERGIA | J53: 12496351.96 | K53: 1553267.108 | L53: 1588304.214 | M53: 11015.37375 | N53: 7847732.173 | O53: 42475.45385 | P53: 5245076.605 | Q53: 8545481.307 | R53: 2484256.805 | S53: 153982.0563 | T53: 20297.74841 | U53: 537069.2276 | V53: 40525310.03
C54: EMBALSE_ANCOA | D54: 5066536.729 | E54: 0 | F54: -5066536.729 | I54: LA ARENA SPA | J54: 4013395.872 | K54: 498855.6515 | L54: 510108.3577 | M54: 3537.756913 | N54: 2520420.04 | O54: 13641.64611 | P54: 1684537.124 | Q54: 2744512.919 | R54: 797857.3298 | S54: 49453.70864 | T54: 6518.93448 | U54: 172488.0531 | V54: 13015327.39
C55: ENERGIA_LEON | D55: 5123810.677 | E55: 0 | F55: -5123810.677 | I55: LA CONFLUENCIA | J55: 32009157.86 | K55: 3978662.91 | L55: 4068409.763 | M55: 28215.66153 | N55: 20101810.41 | O55: 108800.0331 | P55: 13435159.76 | Q55: 21889080.99 | R55: 6363374.567 | S55: 394421.985 | T55: 51992.28023 | U55: 1375692.181 | V55: 103804778.4
C56: EOLICA_ESPERANZA | D56: 3716155.914 | E56: 0 | F56: -3716155.914 | I56: LA HIGUERA | J56: =+$V56*J$90/$V$90 -> 41799545.95 | K56: 5195585.083 | L56: 5312782.097 | M56: 36845.76288 | N56: 26250192.26 | O56: 142077.8392 | P56: 17544465.87 | Q56: 28584121.16 | R56: 8309689.644 | S56: 515060.7197 | T56: 67894.74799 | U56: 1796464.274 | V56: 135554725.4
C57: ERNC1 | D57: 10299604.67 | E57: 0 | F57: -10299604.67 | I57: LIPIGAS | J57: 11172333.48 | K57: 1388694.729 | L57: 1420019.57 | M57: 9848.268462 | N57: 7016246.112 | O57: 37975.07756 | P57: 4689348.149 | Q57: 7640067.051 | R57: 2221043.834 | S57: 137667.2878 | T57: 18147.15325 | U57: 480165.4538 | V57: 36231556.16
C58: GAS SUR | D58: 644446.7149 | E58: 0 | F58: -644446.7149 | I58: LOS_CURUROS | J58: 1961501.749 | K58: 243810.0462 | L58: 249309.6788 | M58: 1729.038598 | N58: 1231826.731 | O58: 6667.199937 | P58: 823298.4287 | Q58: 1341349.586 | R58: 389943.7279 | S58: 24169.93964 | T58: 3186.055349 | U58: 84301.58117 | V58: 6361093.762
C59: GM_HOLDINGS | D59: 1062253232 | E59: 0 | F59: -1062253232 | I59: LUZ_DEL_NORTE | J59: 16110606.12 | K59: 2002510.385 | L59: 2047681.089 | M59: 14201.29237 | N59: 10117490.48 | O59: 54760.406 | P59: 6762082.529 | Q59: 11017045.93 | R59: 3202765.337 | S59: 198517.4766 | T59: 26168.35944 | U59: 692402.9359 | V59: 52246232.34
C60: HELIO_ATACAMA_TRES | D60: 5447827.623 | E60: 0 | F60: -5447827.623 | I60: MONTE REDONDO | J60: 23889154.57 | K60: 2969365.63 | L60: 3036345.726 | M60: 21057.98292 | N60: 15002433.31 | O60: 81199.91221 | P60: 10026961.96 | Q60: 16336313.54 | R60: 4749129.585 | S60: 294366.0001 | T60: 38803.00832 | U60: 1026710.021 | V60: 77471841.24
C61: HIDROLIRCAY | D61: 49950972.66 | E61: 0 | F61: -49950972.66 | I61: NORACID | J61: 2531986.487 | K61: 314719.955 | L61: 321819.1052 | M61: 2231.913567 | N61: 1590092.202 | O61: 8606.2937 | P61: 1062747.202 | Q61: 1731468.772 | R61: 503355.2736 | S61: 31199.54422 | T61: 4112.690235 | U61: 108819.9205 | V61: 8211159.36
C62: HUAJACHE | D62: 8570017.621 | E62: 0 | F62: -8570017.621 | I62: NORVIND | J62: 7834058.411 | K62: 973755.0037 | L62: 995720.033 | M62: 6905.621868 | N62: 4919803.189 | O62: 26628.18617 | P62: 3288178.552 | Q62: 5357227.446 | R62: 1557399.55 | S62: 96532.52619 | T62: 12724.81338 | U62: 336692.7974 | V62: 25405626.13
C63: IMELSA_ENERGIA | D63: 153466358.2 | E63: 0 | F63: -153466358.2 | I63: ON GROUP | J63: 2726540.689 | K63: 338902.584 | L63: 346547.2227 | M63: 2403.410598 | N63: 1712272.602 | O63: 9267.588939 | P63: 1144407.17 | Q63: 1864512.344 | R63: 542032.3694 | S63: 33596.87236 | T63: 4428.703441 | U63: 117181.4868 | V63: 8842093.043
C64: JAVIERA | D64: 62933600.43 | E64: 0 | F64: -62933600.43 | I64: PACIFIC HYDRO | J64: 781576.8249 | K64: 97148.15797 | L64: 99339.53273 | M64: 688.9499326 | N64: 490831.6934 | O64: 2656.601739 | P64: 328050.1647 | Q64: 534471.9938 | R64: 155376.3492 | S64: 9630.715188 | T64: 1269.510478 | U64: 33590.67214 | V64: 2534631.166
C65: KALTEMP | D65: 373622.3174 | E65: 0 | F65: -373622.3174 | I65: PANGUIPULLI | J65: 25032962.36 | K65: 3111538.245 | L65: 3181725.334 | M65: 22066.2348 | N65: 15720746.72 | O65: 85087.74728 | P65: 10507050.83 | Q65: 17118492.87 | R65: 4976516.931 | S65: 308460.1835 | T65: 40660.88836 | U65: 1075868.686 | V65: 81181177.03
C66: KDM_ENERGIA | D66: 40525310.03 | E66: 0 | F66: -40525310.03 | I66: PARQUE_EOLICO_LEBU | J66: =+$V66*J$90/$V$90 -> 383358.1707 | K66: 47650.51744 | L66: 48725.37201 | M66: 337.9253036 | N66: 240749.6411 | O66: 1303.045268 | P66: 160906.3972 | Q66: 262154.9147 | R66: 76211.05323 | S66: 4723.800962 | T66: 622.6863427 | U66: 16475.99854 | V66: 1243219.523
C67: LA ARENA SPA | D67: 13015327.39 | E67: 0 | F67: -13015327.39 | I67: PEHUENCHE | J67: 40717365.81 | K67: 5061072.642 | L67: 5175235.453 | M67: 35891.83499 | N67: 25570581.13 | O67: 138399.4783 | P67: 17090243.9 | Q67: 27844085.18 | R67: 8094553.789 | S67: 501725.9223 | T67: 66136.96939 | U67: 1749954.249 | V67: 132045246.4
C68: LA CONFLUENCIA | D68: 103804778.4 | E68: 0 | F68: -103804778.4 | I68: POZO_ALMONTE_SOLAR_2 | J68: 2748793.856 | K68: 341668.6002 | L68: 349375.6321 | M68: 2423.026479 | N68: 1726247.632 | O68: 9343.228082 | P68: 1153747.461 | Q68: 1879729.907 | R68: 546456.267 | S68: 33871.07945 | T68: 4464.849125 | U68: 118137.8852 | V68: 8914259.424
C69: LA HIGUERA | D69: 135554725.4 | E69: 0 | F69: -135554725.4 | I69: POZO_ALMONTE_SOLAR_3 | J69: 5031562.55 | K69: 625411.3708 | L69: 639518.7993 | M69: 4435.257763 | N69: 3159830.599 | O69: 17102.42346 | P69: 2111890.822 | Q69: 3440774.064 | R69: 1000267.402 | S69: 61999.72201 | T69: 8172.736417 | U69: 216246.9032 | V69: 16317212.65
C70: LIPIGAS | D70: 36231556.16 | E70: 0 | F70: -36231556.16 | I70: PUCLARO | J70: 351461.7172 | K70: 43685.86342 | L70: 44671.28713 | M70: 309.8089895 | N70: 220718.6093 | O70: 1194.62832 | P70: 147518.5427 | Q70: 240342.9052 | R70: 69870.08413 | S70: 4330.767738 | T70: 570.8771275 | U70: 15105.15017 | V70: =-VLOOKUP(I70,C:F,4,0) -> 1139780.241
C71: LOS_CURUROS | D71: 6361093.762 | E71: 0 | F71: -6361093.762 | I71: PUNTILLA | J71: 22565349.03 | K71: 2804819.722 | L71: 2868088.149 | M71: 19891.06534 | N71: 14171080.98 | O71: 76700.25976 | P71: 9471322.884 | Q71: 15431044.91 | R71: 4485958.948 | S71: 278053.8556 | T71: 36652.75905 | U71: 969815.3999 | V71: 73178777.97
C72: LUZ_DEL_NORTE | D72: 52246232.34 | E72: 0 | F72: -52246232.34 | I72: RAKI | J72: 3554870.572 | K72: 441862.0369 | L72: 451829.136 | M72: 3133.57275 | N72: 2232465.302 | O72: 12083.10564 | P72: 1492080.931 | Q72: 2430955.859 | R72: 706703.1592 | S72: 43803.68623 | T72: 5774.154626 | U72: 152781.5156 | V72: 11528343.03
C73: MONTE REDONDO | D73: 77471841.24 | E73: 0 | F73: -77471841.24 | I73: RIO_COLORADO | J73: 3113169.484 | K73: 386959.6323 | L73: 395688.2957 | M73: 2744.218914 | N73: 1955076.201 | O73: 10581.75115 | P73: 1306686.341 | Q73: 2128903.836 | R73: 618893.6179 | S73: 38360.97447 | T73: 5056.702238 | U73: 133798.0504 | V73: 10095919.1
C74: NORACID | D74: 8211159.36 | E74: 0 | F74: -8211159.36 | I74: RUCATAYO | J74: 34633851.97 | K74: 4304906.204 | L74: 4402012.14 | M74: 30529.29568 | N74: 21750123.17 | O74: 117721.4427 | P74: 14536819.01 | Q74: 23683946.77 | R74: 6885159.983 | S74: 426763.8875 | T74: 56255.5549 | U74: 1488496.497 | V74: 112316585.9
C75: NORVIND | D75: 25405626.13 | E75: 0 | F75: -25405626.13 | I75: SAFIRA_ENERGIA_CHILE | J75: 3348803.204 | K75: 416248.3486 | L75: 425637.6788 | M75: 2951.927013 | N75: 2103054.614 | O75: 11382.67683 | P75: 1405588.559 | Q75: 2290039.147 | R75: 665737.2629 | S75: 41264.49103 | T75: 5439.440656 | U75: 143925.1356 | V75: 10860072.49
C76: ON GROUP | D76: 8842093.043 | E76: 0 | F76: -8842093.043 | I76: SAN_JUAN_LAP | J76: =+$V76*J$90/$V$90 -> 65041009.59 | K76: 8084444.258 | L76: 8266805.38 | M76: 57332.81457 | N76: 40845874.47 | O76: 221076.2317 | P76: 27299573.41 | Q76: 44477518.99 | R76: 12930059.21 | S76: 801445.7683 | T76: 105645.7159 | U76: 2795337.783 | V76: 210926123.6
C77: PACIFIC HYDRO | D77: 2534631.166 | E77: 0 | F77: -2534631.166 | I77: SANTIAGO_SOLAR | J77: 8996561.4 | K77: 1118251.386 | L77: 1143475.826 | M77: 7930.353322 | N77: 5649857.219 | O77: 30579.56672 | P77: 3776114.331 | Q77: 6152191.256 | R77: 1788503.473 | S77: 110857.0748 | T77: 14613.05991 | U77: 386654.9451 | V77: 29175589.89
C78: PANGUIPULLI | D78: 81181177.03 | E78: 0 | F78: -81181177.03 | I78: SPVP4 | J78: 1495931.803 | K78: 185940.7987 | L78: 190135.0725 | M78: 1318.64467 | N78: 939447.9423 | O78: 5084.714519 | P78: 627885.3961 | Q78: 1022975.129 | R78: 297389.0919 | S78: 18433.11198 | T78: 2429.83292 | U78: 64292.27828 | V78: 4851263.815
C79: PARQUE_EOLICO_LEBU | D79: 1243219.523 | E79: 0 | F79: -1243219.523 | I79: TACORA_ENERGY | J79: 426483.6677 | K79: 53010.91512 | L79: 54206.68438 | M79: 375.9398753 | N79: 267832.5331 | O79: 1449.630052 | P79: 179007.4027 | Q79: 291645.7716 | R79: 84784.34004 | S79: 5255.200263 | T79: 692.7348249 | U79: 18329.44964 | V79: 1383074.269
C80: PEHUENCHE | D80: 132045246.4 | E80: 0 | F80: -132045246.4 | I80: TECNORED | J80: 20067202.97 | K80: 2494306.051 | L80: 2550570.209 | M80: 17688.98167 | N80: 12602240.63 | O80: 68208.99061 | P80: 8422779.476 | Q80: 13722717.51 | R80: 3989331.102 | S80: 247271.2985 | T80: 32595.03561 | U80: 862449.8758 | V80: 65077362.12
C81: POZO_ALMONTE_SOLAR_2 | D81: 8914259.424 | E81: 0 | F81: -8914259.424 | I81: UCUQUER_DOS | J81: 1322638.578 | K81: 164400.8591 | L81: 168109.2557 | M81: 1165.888918 | N81: 830619.4761 | O81: 4495.685944 | P81: 555149.2694 | Q81: 904470.6229 | R81: 262938.6479 | S81: 16297.76502 | T81: 2148.353789 | U81: 56844.46801 | V81: 4289278.87
C82: POZO_ALMONTE_SOLAR_3 | D82: 16317212.65 | E82: 0 | F82: -16317212.65 | I82: EGP_CHILE | J82: 5961375.771 | K82: 740984.9635 | L82: 757699.39 | M82: 5254.876174 | N82: 3743755.023 | O82: 20262.8849 | P82: 2502160.045 | Q82: 4076615.749 | R82: 1185112.933 | S82: 73457.02987 | T82: 9683.02637 | U82: 256208.4911 | V82: 19332570.18
C83: PUCLARO | D83: 1139780.241 | E83: 0 | F83: -1139780.241 | I83: PMGD_PICA_PILOT | J83: 13838979.26 | K83: 1720152.517 | L83: 1758954.064 | M83: 12198.88247 | N83: 8690904.6 | O83: 47039.08201 | P83: 5808615.711 | Q83: 9463620.976 | R83: 2751169.182 | S83: 170526.1255 | T83: 22478.56975 | U83: 594772.7723 | V83: 44879411.74
C84: PUNTILLA | D84: 73178777.97 | E84: 0 | F84: -73178777.97 | I84: ALTOS_TILTIL | J84: 115362.4526 | K84: 14339.28107 | L84: 14662.73279 | M84: 101.6905203 | N84: 72447.83387 | O84: 392.1202401 | P84: 48420.92341 | Q84: 78889.23786 | R84: 22933.88974 | S84: 1421.514673 | T84: 187.3825294 | U84: 4958.056839 | V84: 374117.1161
C85: RAKI | D85: 11528343.03 | E85: 0 | F85: -11528343.03 | I85: EOLICA_TALTAL | J85: 5192450.486 | K85: 645409.3622 | L85: 659967.8862 | M85: 4577.078412 | N85: 3260868.521 | O85: 17649.2861 | P85: 2179420.094 | Q85: 3550795.361 | R85: 1032251.692 | S85: 63982.209 | T85: 8434.065712 | U85: 223161.5579 | V85: 16838967.6
C86: RIO_COLORADO | D86: 10095919.1 | E86: 0 | F86: -10095919.1 | I86: PV_SALVADOR | J86: 2200849.145 | K86: 273560.3636 | L86: 279731.0754 | M86: 1940.020254 | N86: 1382137.339 | O86: 7480.748509 | P86: 923759.3819 | Q86: 1505024.449 | R86: 437525.6462 | S86: 27119.21671 | T86: 3574.825867 | U86: 94588.27297 | V86: 7137290.485
C87: RUCATAYO | D87: 112316585.9 | E87: 0 | F87: -112316585.9 | I87: EMOAC | J87: 452207.7678 | K87: 56208.36015 | L87: 57476.25431 | M87: 398.6153392 | N87: 283987.3156 | O87: 1537.066996 | P87: 189804.5438 | Q87: 309236.8908 | R87: 89898.25416 | S87: 5572.176757 | T87: 734.5183241 | U87: 19435.0221 | V87: =-VLOOKUP(I87,C:F,4,0) -> 1466496.786
C88: SAFIRA_ENERGIA_CHILE | D88: 10860072.49 | E88: 0 | F88: -10860072.49 | I88: ENERGY_ASSET | J88: 65520.83388 | K88: 8144.085287 | L88: 8327.791734 | M88: 57.75577352 | N88: 41147.20501 | O88: 222.707168 | P88: 27500.9694 | Q88: 44805.64111 | R88: 13025.44758 | S88: 807.3582403 | T88: 106.4250916 | U88: 2815.95971 | V88: 212482.18
C89: SAN_JUAN_LAP | D89: 210926123.6 | E89: 0 | F89: -210926123.6 | I89: ECOM_GENERACION | J89: 45350.75313 | K89: 5636.991769 | L89: 5764.14561 | M89: 39.9761064 | N89: 28480.35695 | O89: 154.1484929 | P89: 19035.00918 | Q89: 31012.57185 | R89: 9015.664526 | S89: 558.8192651 | T89: 73.66295219 | U89: 1949.088344 | V89: 147071.1882
C90: SANTIAGO_SOLAR | D90: 29175589.89 | E90: 0 | F90: -29175589.89 | I90: Total | J90: =+VLOOKUP(J5,$C:$F,4,0) -> 2521812072 | K90: 313455299.3 | L90: 320525922.6 | M90: 2222944.952 | N90: 1583702651 | O90: 8571710.578 | P90: 1058476709 | Q90: 1724511121 | R90: 501332614.7 | S90: =+VLOOKUP(S5,$C:$F,4,0) -> 31074173.45 | T90: 4096163.996 | U90: 108382643.7 | V90: =+SUM(V6:V89) -> 8178164027
C91: SPVP4 | D91: 4851263.815 | E91: 0 | F91: -4851263.815
C92: TACORA_ENERGY | D92: 1383074.269 | E92: 0 | F92: -1383074.269
C93: TECNORED | D93: 65077362.12 | E93: 0 | F93: -65077362.12
C94: UCUQUER_DOS | D94: 4289278.87 | E94: 0 | F94: -4289278.87
C95: EGP_CHILE | D95: 19332570.18 | E95: 0 | F95: -19332570.18
C96: PMGD_PICA_PILOT | D96: 44879411.74 | E96: 0 | F96: -44879411.74
C97: ALTOS_TILTIL | D97: 374117.1161 | E97: 0 | F97: -374117.1161
C98: EOLICA_TALTAL | D98: 16838967.6 | E98: 0 | F98: -16838967.6
C99: PV_SALVADOR | D99: 7137290.485 | E99: 0 | F99: -7137290.485
C100: EMOAC | D100: 1466496.786 | E100: 0 | F100: -1466496.786
C101: ENERGY_ASSET | D101: 212482.18 | E101: 0 | F101: -212482.18
C102: ECOM_GENERACION | D102: 147071.1882 | E102: 0 | F102: -147071.1882
C103: Total | D103: 2.997518497e+10 | E103: 2.997518497e+10 | F103: -1.238682307e-05
